[Event "*** Titled Tuesday Blitz"]
[Site "Chess.com"]
[Date "2020.05.26"]
[Round "7"]
[White "kingnb"]
[Black "jacky72"]
[Result "0-1"]
[WhiteElo "2486"]
[BlackElo "2661"]
[TimeControl "180+1"]
[EndTime "11:24:40 PDT"]
[Termination "jacky72 won by resignation"]

1. e4 {[%clk 0:03:00.9]} 1... e5 {[%clk 0:02:59.5]} 2. Nf3 {[%clk 0:02:59.5]}
2... Nc6 {[%clk 0:02:59.6]} 3. Bc4 {[%clk 0:03:00.2]} 3... Bc5 {[%clk
0:02:59.2]} 4. c3 {[%clk 0:02:59.3]} 4... Nf6 {[%clk 0:02:58.7]} 5. d4 {[%clk
0:02:59.9]} 5... exd4 {[%clk 0:02:59.6]} 6. e5 {[%clk 0:03:00.5]} 6... d5 {[%clk
0:02:59.8]} 7. Bb5 {[%clk 0:03:01]} 7... Ne4 {[%clk 0:03:00.7]} 8. cxd4 {[%clk
0:03:01.7]} 8... Bb6 {[%clk 0:03:01.6]} 9. Nc3 {[%clk 0:03:02.1]} 9... O-O
{[%clk 0:03:00]} 10. Be3 {[%clk 0:03:01.8]} 10... Bg4 {[%clk 0:02:54.9]} 11. h3
{[%clk 0:02:59.4]} 11... Bh5 {[%clk 0:02:46.1]} 12. Qc2 {[%clk 0:02:59.2]} 12...
Bg6 {[%clk 0:02:46.3]} 13. Qb3 {[%clk 0:02:57.8]} 13... Na5 {[%clk 0:02:46.7]}
14. Qxd5 {[%clk 0:02:44.7]} 14... Qe7 {[%clk 0:02:47]} 15. Nxe4 {[%clk
0:02:38.1]} 15... Rfd8 {[%clk 0:02:47.3]} 16. Nd6 {[%clk 0:02:32.9]} 16... c6
{[%clk 0:02:47.2]} 17. Bg5 {[%clk 0:02:22.1]} 17... Qf8 {[%clk 0:02:45.8]} 18.
Bxd8 {[%clk 0:02:10.7]} 18... Rxd8 {[%clk 0:02:42.2]} 19. b4 {[%clk 0:02:00]}
19... cxd5 {[%clk 0:02:39.1]} 20. bxa5 {[%clk 0:02:00.4]} 20... Bxa5+ {[%clk
0:02:37.8]} 21. Ke2 {[%clk 0:02:01.3]} 21... Rxd6 {[%clk 0:02:26]} 22. exd6
{[%clk 0:01:57.9]} 22... Qxd6 {[%clk 0:02:26.9]} 23. Rhc1 {[%clk 0:01:49.6]}
23... h6 {[%clk 0:02:22]} 24. Kf1 {[%clk 0:01:47.3]} 24... a6 {[%clk 0:02:18.5]}
25. Be2 {[%clk 0:01:44.9]} 25... Be4 {[%clk 0:02:08.1]} 26. Ne5 {[%clk
0:01:42.8]} 26... Qf6 {[%clk 0:01:53]} 27. Rc8+ {[%clk 0:01:33.7]} 27... Bd8
{[%clk 0:01:42]} 28. Rac1 {[%clk 0:01:25]} 28... Kh7 {[%clk 0:01:40.9]} 29. Nxf7
{[%clk 0:00:41.3]} 29... Qxf7 {[%clk 0:01:21.1]} 30. Rxd8 {[%clk 0:00:41.1]}
30... Qf6 {[%clk 0:01:14.6]} 31. Rdc8 {[%clk 0:00:11.1]} 31... Qxd4 {[%clk
0:01:13.7]} 32. f3 {[%clk 0:00:11.4]} 32... Bf5 {[%clk 0:01:11.4]} 33. R8c7
{[%clk 0:00:11.5]} 33... Qe3 {[%clk 0:01:11.6]} 34. Rd1 {[%clk 0:00:11.1]} 34...
d4 {[%clk 0:01:09.7]} 35. Re1 {[%clk 0:00:08.3]} 35... d3 {[%clk 0:01:08.8]} 36.
Bd1 {[%clk 0:00:08.9]} 36... Qd2 {[%clk 0:00:56.7]} 37. Rxb7 {[%clk 0:00:08.2]}
37... Qc1 {[%clk 0:00:49.7]} 38. Bb3 {[%clk 0:00:07.7]} 38... d2 {[%clk
0:00:50.1]} 39. Rd1 {[%clk 0:00:08.1]} 39... Bc2 {[%clk 0:00:48.1]} 40. Bxc2+
{[%clk 0:00:07.7]} 40... Qxc2 {[%clk 0:00:49]} 41. Ke2 {[%clk 0:00:07.8]} 41...
Qc4+ {[%clk 0:00:49.3]} 42. Kf2 {[%clk 0:00:07.3]} 42... Qd4+ {[%clk 0:00:43.1]}
43. Kf1 {[%clk 0:00:07.5]} 43... Qd3+ {[%clk 0:00:41.1]} 44. Kf2 {[%clk
0:00:07.7]} 44... Qd4+ {[%clk 0:00:41.1]} 45. Ke2 {[%clk 0:00:06.2]} 45... Qe5+
{[%clk 0:00:39.4]} 46. Kf2 {[%clk 0:00:06.1]} 46... Qd5 {[%clk 0:00:38.8]} 47.
Rbb1 {[%clk 0:00:04.7]} 47... Qd3 {[%clk 0:00:33.3]} 48. a4 {[%clk 0:00:03.1]}
48... a5 {[%clk 0:00:33.1]} 49. Ra1 {[%clk 0:00:03.4]} 49... Qd4+ {[%clk
0:00:33]} 50. Ke2 {[%clk 0:00:03.4]} 50... Qe5+ {[%clk 0:00:29]} 51. Kxd2 {[%clk
0:00:03.3]} 51... Qg3 {[%clk 0:00:29.6]} 52. Ke3 {[%clk 0:00:03.9]} 52... Qxg2
{[%clk 0:00:29.4]} 53. Rg1 {[%clk 0:00:04.8]} 53... Qxh3 {[%clk 0:00:29.3]} 54.
Rad1 {[%clk 0:00:05.2]} 54... Qe6+ {[%clk 0:00:28.5]} 55. Kf2 {[%clk 0:00:05.6]}
55... Qa2+ {[%clk 0:00:28.4]} 56. Kf1 {[%clk 0:00:05.7]} 56... Qxa4 {[%clk
0:00:29.3]} 57. Rd2 {[%clk 0:00:06.3]} 57... Qc4+ {[%clk 0:00:27.5]} 58. Kf2
{[%clk 0:00:06]} 58... a4 {[%clk 0:00:27.6]} 59. Rgd1 {[%clk 0:00:06.2]} 59...
a3 {[%clk 0:00:26.7]} 60. Ra1 {[%clk 0:00:06.3]} 60... Qc5+ {[%clk 0:00:23.4]}
61. Kf1 {[%clk 0:00:06.5]} 61... Qc3 {[%clk 0:00:20.3]} 62. Rda2 {[%clk
0:00:06.2]} 62... Qxf3+ {[%clk 0:00:20.4]} 63. Kg1 {[%clk 0:00:06.3]} 63... h5
{[%clk 0:00:21.3]} 64. Rxa3 {[%clk 0:00:06]} 64... Qg4+ {[%clk 0:00:22.2]} 65.
Kh1 {[%clk 0:00:04.9]} 65... Kh6 {[%clk 0:00:22.5]} 66. Ra6+ {[%clk 0:00:04.5]}
66... g6 {[%clk 0:00:22.5]} 67. R6a4 {[%clk 0:00:03.4]} 67... Qh3+ {[%clk
0:00:22.1]} 68. Kg1 {[%clk 0:00:03.8]} 68... Qg3+ {[%clk 0:00:22.6]} 69. Kh1
{[%clk 0:00:03.6]} 69... h4 {[%clk 0:00:23.5]} 70. R1a3 {[%clk 0:00:03.9]} 70...
Qf2 {[%clk 0:00:20.5]} 71. Ra2 {[%clk 0:00:01.7]} 71... Qf1+ {[%clk 0:00:19.7]}
72. Kh2 {[%clk 0:00:02.6]} 72... g5 {[%clk 0:00:20.6]} 73. Rg2 {[%clk
0:00:02.4]} 73... Qf6 {[%clk 0:00:17.4]} 74. Rag4 {[%clk 0:00:02.5]} 74... Qe5+
{[%clk 0:00:17.5]} 75. Kh3 {[%clk 0:00:03]} 75... Qe3+ {[%clk 0:00:12.1]} 76.
Kh2 {[%clk 0:00:03.4]} 76... Qe5+ {[%clk 0:00:09.5]} 77. Kh3 {[%clk 0:00:03.6]}
77... Qe1 {[%clk 0:00:09.8]} 78. Rxg5 {[%clk 0:00:03.5]} 78... Qh1+ {[%clk
0:00:10.1]} 79. Rh2 {[%clk 0:00:02.9]} 79... Qf3+ {[%clk 0:00:08.1]} 80. Kxh4
{[%clk 0:00:03.8]} 80... Qf4+ {[%clk 0:00:08.5]} 81. Kh3 {[%clk 0:00:04.4]}
81... Kxg5 {[%clk 0:00:07.6]} 82. Rg2+ {[%clk 0:00:04.8]} 82... Kh5 {[%clk
0:00:07.7]} 83. Rg3 {[%clk 0:00:05.4]} 83... Qf1+ {[%clk 0:00:07.1]} 84. Kh2
{[%clk 0:00:05.7]} 84... Kh4 {[%clk 0:00:07]} 85. Rg4+ {[%clk 0:00:05.4]} 85...
Kh5 {[%clk 0:00:07.2]} 86. Rg3 {[%clk 0:00:05.8]} 86... Qf4 {[%clk 0:00:06.6]}
87. Kg2 {[%clk 0:00:06.1]} 87... Kh4 {[%clk 0:00:06.7]} 88. Rh3+ {[%clk
0:00:06.2]} 88... Kg4 {[%clk 0:00:07.1]} 89. Rh2 {[%clk 0:00:06.8]} 89... Qd2+
{[%clk 0:00:05.6]} 90. Kg1 {[%clk 0:00:07.2]} 90... Qe1+ {[%clk 0:00:05.6]} 91.
Kg2 {[%clk 0:00:07.1]} 91... Qg3+ {[%clk 0:00:04.1]} 92. Kh1 {[%clk 0:00:07.1]}
92... Kf3 {[%clk 0:00:02.4]} 93. Ra2 {[%clk 0:00:06.6]} 93... Qh3+ {[%clk
0:00:01.7]} 94. Kg1 {[%clk 0:00:07]} 94... Qg4+ {[%clk 0:00:02.6]} 95. Kf1
{[%clk 0:00:07.3]} 95... Qc4+ {[%clk 0:00:02.5]} 96. Kg1 {[%clk 0:00:07.4]}
96... Qxa2 {[%clk 0:00:02.5]} 0-1

[Event "*** Titled Tuesday Blitz"]
[Site "Chess.com"]
[Date "2020.05.26"]
[Round "8"]
[White "1stSecond"]
[Black "AnishGiri"]
[Result "0-1"]
[WhiteElo "2697"]
[BlackElo "2960"]
[TimeControl "180+1"]
[EndTime "11:35:01 PDT"]
[Termination "AnishGiri won by resignation"]

1. Nf3 {[%clk 0:02:59.9]} 1... Nf6 {[%clk 0:02:59.6]} 2. g3 {[%clk 0:02:59.4]}
2... c5 {[%clk 0:02:57.9]} 3. Bg2 {[%clk 0:02:58.6]} 3... Nc6 {[%clk 0:02:58.6]}
4. c4 {[%clk 0:02:55.1]} 4... g6 {[%clk 0:02:56]} 5. b3 {[%clk 0:02:53.1]} 5...
d6 {[%clk 0:02:55]} 6. Bb2 {[%clk 0:02:53.4]} 6... Bg7 {[%clk 0:02:55.6]} 7. O-O
{[%clk 0:02:52.1]} 7... O-O {[%clk 0:02:55.8]} 8. d4 {[%clk 0:02:51.1]} 8...
cxd4 {[%clk 0:02:46.7]} 9. Nxd4 {[%clk 0:02:51.1]} 9... Bd7 {[%clk 0:02:47.1]}
10. Nc3 {[%clk 0:02:50.3]} 10... h5 {[%clk 0:02:40.4]} 11. h3 {[%clk 0:02:42.5]}
11... Qc8 {[%clk 0:02:35.5]} 12. Kh2 {[%clk 0:02:42]} 12... Nxd4 {[%clk
0:02:35.6]} 13. Qxd4 {[%clk 0:02:41.6]} 13... Ng4+ {[%clk 0:02:35.9]} 0-1

[Event "*** Titled Tuesday Blitz"]
[Site "Chess.com"]
[Date "2020.05.26"]
[Round "8"]
[White "Sippp"]
[Black "Slovak_fighter2000"]
[Result "1-0"]
[WhiteElo "2672"]
[BlackElo "2478"]
[TimeControl "180+1"]
[EndTime "11:35:27 PDT"]
[Termination "Sippp won by resignation"]

1. e4 {[%clk 0:03:00.8]} 1... e6 {[%clk 0:02:59.7]} 2. d4 {[%clk 0:03:00]} 2...
d5 {[%clk 0:03:00.1]} 3. Nc3 {[%clk 0:02:58.5]} 3... Nf6 {[%clk 0:02:59.6]} 4.
Bg5 {[%clk 0:02:57.8]} 4... Be7 {[%clk 0:02:58.4]} 5. e5 {[%clk 0:02:57.5]} 5...
Nfd7 {[%clk 0:02:56.8]} 6. Bxe7 {[%clk 0:02:57.4]} 6... Qxe7 {[%clk 0:02:57.7]}
7. f4 {[%clk 0:02:58.1]} 7... O-O {[%clk 0:02:55.9]} 8. Nf3 {[%clk 0:02:58]}
8... c5 {[%clk 0:02:55.8]} 9. Qd2 {[%clk 0:02:57.4]} 9... Nc6 {[%clk 0:02:56.2]}
10. dxc5 {[%clk 0:02:56.8]} 10... Qxc5 {[%clk 0:02:55]} 11. O-O-O {[%clk
0:02:56.1]} 11... a6 {[%clk 0:02:51.7]} 12. Kb1 {[%clk 0:02:55.7]} 12... b5
{[%clk 0:02:51.3]} 13. Bd3 {[%clk 0:02:55.9]} 13... b4 {[%clk 0:02:50.6]} 14.
Ne2 {[%clk 0:02:56.1]} 14... a5 {[%clk 0:02:50]} 15. h4 {[%clk 0:02:51.5]} 15...
Ba6 {[%clk 0:02:48.2]} 16. h5 {[%clk 0:02:46.1]} 16... Bxd3 {[%clk 0:02:45.5]}
17. Qxd3 {[%clk 0:02:47]} 17... Nb6 {[%clk 0:02:41.8]} 18. Ng5 {[%clk
0:02:45.3]} 18... g6 {[%clk 0:02:34.4]} 19. hxg6 {[%clk 0:02:41.2]} 19... fxg6
{[%clk 0:02:31.6]} 20. Rxh7 {[%clk 0:02:38.2]} 1-0

[Event "*** Titled Tuesday Blitz"]
[Site "Chess.com"]
[Date "2020.05.26"]
[Round "8"]
[White "mortngabriel"]
[Black "CyberdelChess"]
[Result "1-0"]
[WhiteElo "2438"]
[BlackElo "2284"]
[TimeControl "180+1"]
[EndTime "11:35:45 PDT"]
[Termination "mortngabriel won by resignation"]

1. d4 {[%clk 0:03:00.9]} 1... d5 {[%clk 0:02:58.6]} 2. c4 {[%clk 0:02:58.8]}
2... c6 {[%clk 0:02:58.9]} 3. cxd5 {[%clk 0:02:58.9]} 3... cxd5 {[%clk
0:02:59.8]} 4. Bf4 {[%clk 0:02:59.1]} 4... Nc6 {[%clk 0:03:00.2]} 5. e3 {[%clk
0:02:59.7]} 5... Nf6 {[%clk 0:03:00.3]} 6. Nc3 {[%clk 0:02:57.3]} 6... a6 {[%clk
0:03:00.5]} 7. Bd3 {[%clk 0:02:56.9]} 7... b5 {[%clk 0:02:54.8]} 8. Rc1 {[%clk
0:02:54.2]} 8... Bb7 {[%clk 0:02:55]} 9. Nf3 {[%clk 0:02:53.6]} 9... e6 {[%clk
0:02:54.6]} 10. O-O {[%clk 0:02:52.9]} 10... Be7 {[%clk 0:02:55.1]} 11. a4
{[%clk 0:02:44.5]} 11... b4 {[%clk 0:02:50.9]} 12. Nb1 {[%clk 0:02:44.6]} 12...
O-O {[%clk 0:02:49.5]} 13. Nbd2 {[%clk 0:02:44.6]} 13... Qa5 {[%clk 0:02:34.9]}
14. Nb3 {[%clk 0:02:41.1]} 14... Qxa4 {[%clk 0:02:34]} 15. Ra1 {[%clk
0:02:40.5]} 15... Qxa1 {[%clk 0:02:16.3]} 16. Qxa1 {[%clk 0:02:36.8]} 16... a5
{[%clk 0:02:15.7]} 17. Qa4 {[%clk 0:02:31.7]} 1-0

[Event "*** Titled Tuesday Blitz"]
[Site "Chess.com"]
[Date "2020.05.26"]
[Round "8"]
[White "ChessTraining77"]
[Black "Saloni1299"]
[Result "1-0"]
[WhiteElo "2516"]
[BlackElo "2298"]
[TimeControl "180+1"]
[EndTime "11:35:48 PDT"]
[Termination "ChessTraining77 won by resignation"]

1. e4 {[%clk 0:02:58.1]} 1... e6 {[%clk 0:02:56.8]} 2. d4 {[%clk 0:02:56.9]}
2... d5 {[%clk 0:02:57.4]} 3. Nc3 {[%clk 0:02:54.4]} 3... Bb4 {[%clk 0:02:57.2]}
4. e5 {[%clk 0:02:53.5]} 4... c5 {[%clk 0:02:56.7]} 5. a3 {[%clk 0:02:53.5]}
5... Bxc3+ {[%clk 0:02:56.8]} 6. bxc3 {[%clk 0:02:53.4]} 6... Ne7 {[%clk
0:02:57.4]} 7. a4 {[%clk 0:02:52.5]} 7... Qc7 {[%clk 0:02:56.9]} 8. Nf3 {[%clk
0:02:51.7]} 8... O-O {[%clk 0:02:50.8]} 9. Bd3 {[%clk 0:02:46.4]} 9... b6 {[%clk
0:02:50.6]} 10. Bxh7+ {[%clk 0:02:39.1]} 10... Kxh7 {[%clk 0:02:50.6]} 11. Ng5+
{[%clk 0:02:38.7]} 11... Kg8 {[%clk 0:02:33.4]} 12. Qh5 {[%clk 0:02:37.9]} 12...
Rd8 {[%clk 0:02:30.2]} 13. Qxf7+ {[%clk 0:02:30]} 13... Kh8 {[%clk 0:02:29.8]}
14. c4 {[%clk 0:02:27]} 14... cxd4 {[%clk 0:02:22.7]} 15. Ra3 {[%clk 0:02:25.4]}
1-0

[Event "*** Titled Tuesday Blitz"]
[Site "Chess.com"]
[Date "2020.05.26"]
[Round "8"]
[White "seastar"]
[Black "Kensei26"]
[Result "0-1"]
[WhiteElo "1981"]
[BlackElo "2238"]
[TimeControl "180+1"]
[EndTime "11:36:50 PDT"]
[Termination "Kensei26 won by resignation"]

1. d4 {[%clk 0:02:37.8]} 1... Nf6 {[%clk 0:02:56]} 2. c4 {[%clk 0:02:37.6]} 2...
c5 {[%clk 0:02:54.2]} 3. d5 {[%clk 0:02:34.1]} 3... e6 {[%clk 0:02:54.2]} 4. Nc3
{[%clk 0:02:34.2]} 4... exd5 {[%clk 0:02:36.4]} 5. cxd5 {[%clk 0:02:34.9]} 5...
d6 {[%clk 0:02:35.6]} 6. Nf3 {[%clk 0:02:26.8]} 6... g6 {[%clk 0:02:35.2]} 7.
Bf4 {[%clk 0:02:26.4]} 7... Bg7 {[%clk 0:02:28.9]} 8. h3 {[%clk 0:02:26.4]} 8...
O-O {[%clk 0:02:28.1]} 9. e3 {[%clk 0:02:25.9]} 9... Re8 {[%clk 0:02:24.8]} 10.
Bd3 {[%clk 0:02:21.1]} 10... Na6 {[%clk 0:02:11.4]} 11. a3 {[%clk 0:02:18.1]}
11... Nc7 {[%clk 0:02:08.2]} 12. Bc4 {[%clk 0:02:06.1]} 12... a6 {[%clk
0:01:58.5]} 13. a4 {[%clk 0:02:04.9]} 13... Rb8 {[%clk 0:01:58.2]} 14. Qe2
{[%clk 0:02:01]} 14... Ne4 {[%clk 0:01:56.2]} 15. O-O-O {[%clk 0:01:51.9]} 15...
Bxc3 {[%clk 0:01:52.7]} 0-1

[Event "*** Titled Tuesday Blitz"]
[Site "Chess.com"]
[Date "2020.05.26"]
[Round "8"]
[White "vaishali2001"]
[Black "SlavenPastar"]
[Result "1-0"]
[WhiteElo "2600"]
[BlackElo "2397"]
[TimeControl "180+1"]
[EndTime "11:36:51 PDT"]
[Termination "vaishali2001 won by resignation"]

1. e4 {[%clk 0:02:54.1]} 1... b6 {[%clk 0:03:00.5]} 2. d4 {[%clk 0:02:53.3]}
2... Bb7 {[%clk 0:03:01.2]} 3. Nc3 {[%clk 0:02:51.6]} 3... e6 {[%clk 0:03:00.2]}
4. a3 {[%clk 0:02:51.8]} 4... Nf6 {[%clk 0:02:44.2]} 5. e5 {[%clk 0:02:45.2]}
5... Ne4 {[%clk 0:02:32.4]} 6. Nf3 {[%clk 0:02:39.5]} 6... Nxc3 {[%clk
0:02:30.4]} 7. bxc3 {[%clk 0:02:40.4]} 7... d6 {[%clk 0:02:24.8]} 8. Bd3 {[%clk
0:02:31.1]} 8... dxe5 {[%clk 0:02:18.1]} 9. Nxe5 {[%clk 0:02:32]} 9... Bxg2
{[%clk 0:02:07.9]} 10. Rg1 {[%clk 0:02:31.9]} 10... Bb7 {[%clk 0:02:08.3]} 11.
Qh5 {[%clk 0:02:25.4]} 11... Qe7 {[%clk 0:01:48.7]} 12. Bg5 {[%clk 0:02:20.9]}
12... g6 {[%clk 0:01:41]} 13. Bxe7 {[%clk 0:02:10.2]} 13... gxh5 {[%clk
0:01:36.7]} 14. Bf6 {[%clk 0:02:10.6]} 14... Bg7 {[%clk 0:01:33.3]} 15. Bxg7
{[%clk 0:02:04.1]} 15... Rg8 {[%clk 0:01:32.4]} 16. Bxh7 {[%clk 0:02:04.4]} 1-0

[Event "*** Titled Tuesday Blitz"]
[Site "Chess.com"]
[Date "2020.05.26"]
[Round "8"]
[White "Jadeit90"]
[Black "Semetey"]
[Result "0-1"]
[WhiteElo "2304"]
[BlackElo "2523"]
[TimeControl "180+1"]
[EndTime "11:37:16 PDT"]
[Termination "Semetey won by resignation"]

1. g3 {[%clk 0:02:59.3]} 1... d5 {[%clk 0:02:59.7]} 2. Bg2 {[%clk 0:02:59.8]}
2... Nf6 {[%clk 0:02:59.3]} 3. c4 {[%clk 0:03:00.4]} 3... c6 {[%clk 0:02:59.4]}
4. cxd5 {[%clk 0:03:00.8]} 4... cxd5 {[%clk 0:03:00.3]} 5. Nf3 {[%clk
0:03:01.2]} 5... Nc6 {[%clk 0:03:00.4]} 6. O-O {[%clk 0:03:02.1]} 6... Bf5
{[%clk 0:03:00.4]} 7. d3 {[%clk 0:03:03]} 7... e6 {[%clk 0:03:00.4]} 8. Nc3
{[%clk 0:03:03.9]} 8... Be7 {[%clk 0:03:00]} 9. Qa4 {[%clk 0:03:04.1]} 9... O-O
{[%clk 0:02:58.9]} 10. e4 {[%clk 0:03:04.4]} 10... Bg6 {[%clk 0:02:55]} 11. Nh4
{[%clk 0:03:03.8]} 11... d4 {[%clk 0:02:18.5]} 12. Nxg6 {[%clk 0:02:55]} 12...
hxg6 {[%clk 0:02:17.6]} 13. Ne2 {[%clk 0:02:55.3]} 13... e5 {[%clk 0:02:13.2]}
14. f4 {[%clk 0:02:30.1]} 14... Nd7 {[%clk 0:02:13.2]} 15. f5 {[%clk 0:02:27.4]}
15... g5 {[%clk 0:02:11.2]} 16. Qd1 {[%clk 0:02:25.4]} 16... Nc5 {[%clk
0:02:05.7]} 17. a3 {[%clk 0:02:24.4]} 17... a5 {[%clk 0:02:04.9]} 18. g4 {[%clk
0:02:24.5]} 18... a4 {[%clk 0:02:04.6]} 19. Ng3 {[%clk 0:02:23.1]} 19... Qb6
{[%clk 0:02:03.7]} 20. Nh5 {[%clk 0:02:17.1]} 20... Na5 {[%clk 0:01:48.8]} 21.
f6 {[%clk 0:02:16.1]} 21... Bxf6 {[%clk 0:01:46]} 22. Nxf6+ {[%clk 0:02:15.8]}
22... gxf6 {[%clk 0:01:46.9]} 23. Rf3 {[%clk 0:02:08.4]} 23... Kg7 {[%clk
0:01:45.3]} 24. Bd2 {[%clk 0:02:04.2]} 24... Nab3 {[%clk 0:01:44.3]} 25. Rb1
{[%clk 0:02:03.6]} 25... Rh8 {[%clk 0:01:40.3]} 26. Bb4 {[%clk 0:02:03.5]} 26...
Ne6 {[%clk 0:01:38.9]} 27. Qf1 {[%clk 0:02:02.3]} 27... Nf4 {[%clk 0:01:38]} 0-1

[Event "*** Titled Tuesday Blitz"]
[Site "Chess.com"]
[Date "2020.05.26"]
[Round "8"]
[White "Nikolaj_6"]
[Black "Ladislav1969"]
[Result "1-0"]
[WhiteElo "2509"]
[BlackElo "2318"]
[TimeControl "180+1"]
[EndTime "11:37:52 PDT"]
[Termination "Nikolaj_6 won by resignation"]

1. e4 {[%clk 0:03:00.9]} 1... c5 {[%clk 0:01:01.9]} 2. Nf3 {[%clk 0:03:00]} 2...
e6 {[%clk 0:01:01.4]} 3. d4 {[%clk 0:03:00.2]} 3... cxd4 {[%clk 0:01:01.8]} 4.
Nxd4 {[%clk 0:03:00.9]} 4... Nf6 {[%clk 0:01:02.1]} 5. Nc3 {[%clk 0:03:00.7]}
5... Nc6 {[%clk 0:01:02.1]} 6. Ndb5 {[%clk 0:02:59.9]} 6... Bb4 {[%clk 0:01:00]}
7. a3 {[%clk 0:02:59.4]} 7... Bxc3+ {[%clk 0:00:59.6]} 8. Nxc3 {[%clk 0:03:00]}
8... d5 {[%clk 0:01:00.3]} 9. exd5 {[%clk 0:02:59.8]} 9... exd5 {[%clk
0:01:00.7]} 10. Bd3 {[%clk 0:02:59.9]} 10... d4 {[%clk 0:00:59.8]} 11. Ne2
{[%clk 0:02:59.2]} 11... Bg4 {[%clk 0:00:59.3]} 12. O-O {[%clk 0:02:58.3]} 12...
O-O {[%clk 0:00:59.4]} 13. Bg5 {[%clk 0:02:52.7]} 13... h6 {[%clk 0:00:57.7]}
14. Bh4 {[%clk 0:02:49.4]} 14... g5 {[%clk 0:00:54.2]} 15. Bg3 {[%clk
0:02:48.9]} 15... Qd5 {[%clk 0:00:54.8]} 16. c4 {[%clk 0:02:45.3]} 16... dxc3
{[%clk 0:00:51.9]} 17. Nxc3 {[%clk 0:02:45.2]} 17... Bxd1 {[%clk 0:00:49.2]} 18.
Nxd5 {[%clk 0:02:44.9]} 18... Nxd5 {[%clk 0:00:49.1]} 19. Rfxd1 {[%clk
0:02:44.7]} 19... Rad8 {[%clk 0:00:49.2]} 20. Be4 {[%clk 0:02:38.2]} 20... Nf6
{[%clk 0:00:48.1]} 21. Bxc6 {[%clk 0:02:37.6]} 21... bxc6 {[%clk 0:00:47.9]} 22.
Bd6 {[%clk 0:02:32.9]} 22... Rfe8 {[%clk 0:00:47]} 23. f3 {[%clk 0:02:33.1]}
23... Re6 {[%clk 0:00:46.6]} 24. Bc5 {[%clk 0:02:32.2]} 24... Rxd1+ {[%clk
0:00:45.8]} 25. Rxd1 {[%clk 0:02:32.2]} 25... Re2 {[%clk 0:00:46.6]} 26. Bxa7
{[%clk 0:02:15.9]} 26... Rxb2 {[%clk 0:00:46.4]} 27. Bd4 {[%clk 0:02:14.9]} 1-0

[Event "*** Titled Tuesday Blitz"]
[Site "Chess.com"]
[Date "2020.05.26"]
[Round "8"]
[White "Bubachess1608"]
[Black "TudorAnton"]
[Result "1-0"]
[WhiteElo "2322"]
[BlackElo "2439"]
[TimeControl "180+1"]
[EndTime "11:37:58 PDT"]
[Termination "Bubachess1608 won by resignation"]

1. e4 {[%clk 0:03:00.9]} 1... e5 {[%clk 0:02:57.3]} 2. Bc4 {[%clk 0:02:59.2]}
2... Nf6 {[%clk 0:02:56.1]} 3. d3 {[%clk 0:02:59]} 3... Bc5 {[%clk 0:02:47.7]}
4. Nf3 {[%clk 0:02:58.5]} 4... d6 {[%clk 0:02:46.7]} 5. O-O {[%clk 0:02:58]}
5... Nc6 {[%clk 0:02:39.7]} 6. Bb3 {[%clk 0:02:57.2]} 6... Bg4 {[%clk
0:02:39.6]} 7. c3 {[%clk 0:02:55.8]} 7... a5 {[%clk 0:02:40.2]} 8. a4 {[%clk
0:02:54.2]} 8... O-O {[%clk 0:02:40.2]} 9. h3 {[%clk 0:02:53]} 9... Bh5 {[%clk
0:02:39.6]} 10. Nbd2 {[%clk 0:02:48.6]} 10... Qb8 {[%clk 0:02:39.8]} 11. Re1
{[%clk 0:02:42.7]} 11... Qa7 {[%clk 0:02:39.6]} 12. Qe2 {[%clk 0:02:41.5]} 12...
Ne7 {[%clk 0:02:37.1]} 13. Nf1 {[%clk 0:02:40.4]} 13... Ng6 {[%clk 0:02:31.9]}
14. g4 {[%clk 0:02:33.7]} 14... Nxg4 {[%clk 0:02:31.5]} 15. hxg4 {[%clk
0:02:33.3]} 15... Bxg4 {[%clk 0:02:32.4]} 16. N1h2 {[%clk 0:02:32.1]} 16... Bh5
{[%clk 0:02:31.7]} 17. d4 {[%clk 0:02:17.9]} 17... exd4 {[%clk 0:02:31.3]} 18.
cxd4 {[%clk 0:02:17.6]} 18... Bxd4 {[%clk 0:02:31.9]} 19. Be3 {[%clk 0:02:15.3]}
19... Bb6 {[%clk 0:02:25]} 20. Qb5 {[%clk 0:01:58.7]} 20... Bxe3 {[%clk
0:02:23]} 21. Rxe3 {[%clk 0:01:58.2]} 21... Bxf3 {[%clk 0:02:19.2]} 22. Nxf3
{[%clk 0:01:50.2]} 22... Rae8 {[%clk 0:02:19.5]} 23. Rc1 {[%clk 0:01:39.4]}
23... c6 {[%clk 0:02:18.8]} 24. Qh5 {[%clk 0:01:35.8]} 24... Re7 {[%clk
0:01:59.1]} 25. Ng5 {[%clk 0:01:33.5]} 25... h6 {[%clk 0:01:51]} 26. Qxg6 {[%clk
0:01:15.1]} 26... hxg5 {[%clk 0:01:49]} 27. Rh3 {[%clk 0:01:12.8]} 1-0

[Event "*** Titled Tuesday Blitz"]
[Site "Chess.com"]
[Date "2020.05.26"]
[Round "8"]
[White "CzechmVIII"]
[Black "FMalexhdez"]
[Result "0-1"]
[WhiteElo "2150"]
[BlackElo "2067"]
[TimeControl "180+1"]
[EndTime "11:38:06 PDT"]
[Termination "FMalexhdez won by resignation"]

1. e4 {[%clk 0:03:00.9]} 1... c5 {[%clk 0:02:59.2]} 2. Nf3 {[%clk 0:03:00.9]}
2... d6 {[%clk 0:02:58.3]} 3. Nc3 {[%clk 0:02:59.1]} 3... Nf6 {[%clk 0:02:56.6]}
4. d4 {[%clk 0:02:59]} 4... cxd4 {[%clk 0:02:55.2]} 5. Nxd4 {[%clk 0:02:59.7]}
5... a6 {[%clk 0:02:54.6]} 6. Bg5 {[%clk 0:02:59.4]} 6... e6 {[%clk 0:02:48.3]}
7. f4 {[%clk 0:02:59.1]} 7... Be7 {[%clk 0:02:44.3]} 8. Qf3 {[%clk 0:02:57.7]}
8... Qc7 {[%clk 0:02:40.1]} 9. O-O-O {[%clk 0:02:55.8]} 9... Nbd7 {[%clk
0:02:34.4]} 10. g4 {[%clk 0:02:55.6]} 10... b5 {[%clk 0:02:31.4]} 11. Bxf6
{[%clk 0:02:51.7]} 11... Nxf6 {[%clk 0:02:29.1]} 12. g5 {[%clk 0:02:51.7]} 12...
Nd7 {[%clk 0:02:26.2]} 13. a3 {[%clk 0:02:51.7]} 13... Bb7 {[%clk 0:02:24.3]}
14. Bh3 {[%clk 0:02:47.6]} 14... O-O-O {[%clk 0:02:20.8]} 15. Bxe6 {[%clk
0:02:39.1]} 15... fxe6 {[%clk 0:02:18.4]} 16. Nxe6 {[%clk 0:02:39.2]} 16... Qb6
{[%clk 0:02:01]} 17. Nd5 {[%clk 0:02:33.7]} 17... Bxd5 {[%clk 0:01:59.4]} 18.
exd5 {[%clk 0:02:34.3]} 18... Rde8 {[%clk 0:01:40.4]} 19. Rd3 {[%clk 0:01:59.7]}
19... Nc5 {[%clk 0:01:35.8]} 20. Nxc5 {[%clk 0:01:53.8]} 20... dxc5 {[%clk
0:01:34.6]} 21. d6 {[%clk 0:01:54.2]} 21... Bxd6 {[%clk 0:01:30]} 22. Rhd1
{[%clk 0:01:47.8]} 22... Rd8 {[%clk 0:01:17.5]} 23. Qa8+ {[%clk 0:01:23.2]}
23... Kc7 {[%clk 0:01:17]} 24. Qd5 {[%clk 0:01:18.1]} 24... Bxf4+ {[%clk
0:01:14.2]} 0-1